[Event "*** Titled Tuesday Blitz"]
[Site "Chess.com"]
[Date "2020.10.20"]
[Round "11"]
[White "chessmachine14"]
[Black "CLG_Nemsko"]
[Result "1-0"]
[WhiteElo "2315"]
[BlackElo "2197"]
[TimeControl "180+1"]
[EndTime "12:11:09 PDT"]
[Termination "chessmachine14 won on time"]

1. e4 {[%clk 0:03:00.9]} 1... e5 {[%clk 0:02:57.9]} 2. Nf3 {[%clk 0:03:00.6]}
2... Nc6 {[%clk 0:02:57.5]} 3. Bb5 {[%clk 0:02:57.9]} 3... a6 {[%clk 0:02:56.8]}
4. Ba4 {[%clk 0:02:57.7]} 4... Nf6 {[%clk 0:02:56.9]} 5. O-O {[%clk 0:02:56.6]}
5... Be7 {[%clk 0:02:57]} 6. d3 {[%clk 0:02:51.5]} 6... b5 {[%clk 0:02:56.6]} 7.
Bb3 {[%clk 0:02:51.3]} 7... d6 {[%clk 0:02:57.1]} 8. a3 {[%clk 0:02:51.5]} 8...
O-O {[%clk 0:02:57.6]} 9. Nc3 {[%clk 0:02:51.7]} 9... Bg4 {[%clk 0:02:56.8]} 10.
Be3 {[%clk 0:02:48.4]} 10... h6 {[%clk 0:02:49.5]} 11. Nd5 {[%clk 0:02:47.1]}
11... Re8 {[%clk 0:02:45.6]} 12. h3 {[%clk 0:02:45.1]} 12... Be6 {[%clk
0:02:44.5]} 13. Qd2 {[%clk 0:02:31]} 13... Bf8 {[%clk 0:02:32.4]} 14. c3 {[%clk
0:02:16.5]} 14... Nh7 {[%clk 0:02:24.1]} 15. g4 {[%clk 0:02:04.9]} 15... Ne7
{[%clk 0:02:18.4]} 16. Nxe7+ {[%clk 0:01:56.5]} 16... Qxe7 {[%clk 0:02:17.4]}
17. Bxe6 {[%clk 0:01:53.9]} 17... Qxe6 {[%clk 0:02:18.3]} 18. Nh4 {[%clk
0:01:52.1]} 18... Qf6 {[%clk 0:02:10.1]} 19. Nf5 {[%clk 0:01:49.9]} 19... Ng5
{[%clk 0:02:07.2]} 20. Bxg5 {[%clk 0:01:43.4]} 20... hxg5 {[%clk 0:02:08.1]} 21.
Kg2 {[%clk 0:01:37.5]} 21... g6 {[%clk 0:02:03]} 22. Ne3 {[%clk 0:01:36.6]}
22... c6 {[%clk 0:02:01.4]} 23. c4 {[%clk 0:01:30.9]} 23... Rad8 {[%clk
0:01:55.7]} 24. Qa5 {[%clk 0:01:27.4]} 24... bxc4 {[%clk 0:01:42.1]} 25. dxc4
{[%clk 0:01:27.1]} 25... Qf4 {[%clk 0:01:40.2]} 26. Rae1 {[%clk 0:01:02.6]}
26... Qxe4+ {[%clk 0:01:36]} 27. f3 {[%clk 0:01:02.2]} 27... Qd4 {[%clk
0:01:29.9]} 28. Qxa6 {[%clk 0:00:57.6]} 28... Qxb2+ {[%clk 0:01:29.3]} 29. Rf2
{[%clk 0:00:57.5]} 29... Qc3 {[%clk 0:01:23.6]} 30. Ree2 {[%clk 0:00:55.1]}
30... d5 {[%clk 0:01:14.9]} 31. Qxc6 {[%clk 0:00:49.6]} 31... d4 {[%clk
0:01:14]} 32. Nd5 {[%clk 0:00:49.6]} 32... Rxd5 {[%clk 0:01:10.4]} 33. Qxd5
{[%clk 0:00:47.4]} 33... Bg7 {[%clk 0:01:10.1]} 34. c5 {[%clk 0:00:34]} 34...
Rc8 {[%clk 0:01:07.5]} 35. Rc2 {[%clk 0:00:31.8]} 35... Qxa3 {[%clk 0:01:03.5]}
36. c6 {[%clk 0:00:31.9]} 36... d3 {[%clk 0:00:50.4]} 37. Rc4 {[%clk 0:00:24.2]}
37... Bf8 {[%clk 0:00:25.9]} 38. c7 {[%clk 0:00:14.9]} 38... Qe7 {[%clk
0:00:19.4]} 39. Qb7 {[%clk 0:00:12.9]} 39... Qd7 {[%clk 0:00:19]} 40. Rd2 {[%clk
0:00:12.5]} 40... Bd6 {[%clk 0:00:16.1]} 41. Rxd3 {[%clk 0:00:11.1]} 41... Rxc7
{[%clk 0:00:16.6]} 42. Rxc7 {[%clk 0:00:10.5]} 42... Qxc7 {[%clk 0:00:16.3]} 43.
Qxc7 {[%clk 0:00:10.6]} 43... Bxc7 {[%clk 0:00:17.2]} 44. Kf2 {[%clk 0:00:10.5]}
44... Bb6+ {[%clk 0:00:16.4]} 45. Ke2 {[%clk 0:00:10.8]} 45... Bd4 {[%clk
0:00:17]} 46. Ra3 {[%clk 0:00:08]} 46... f6 {[%clk 0:00:17.3]} 47. Kd3 {[%clk
0:00:08.2]} 47... Kf7 {[%clk 0:00:17.8]} 48. Ke4 {[%clk 0:00:08.4]} 48... Ke6
{[%clk 0:00:17.8]} 49. Ra6+ {[%clk 0:00:08.5]} 49... Kf7 {[%clk 0:00:16.7]} 50.
Rd6 {[%clk 0:00:07.8]} 50... Bb2 {[%clk 0:00:15.7]} 51. Rb6 {[%clk 0:00:07.7]}
51... Bd4 {[%clk 0:00:16.1]} 52. Rc6 {[%clk 0:00:05.8]} 52... Bb2 {[%clk
0:00:13.9]} 53. Kd5 {[%clk 0:00:05.7]} 53... f5 {[%clk 0:00:12.9]} 54. Rc7+
{[%clk 0:00:05.7]} 54... Kf6 {[%clk 0:00:12.4]} 55. Rc6+ {[%clk 0:00:05.3]}
55... Kf7 {[%clk 0:00:12.4]} 56. Rb6 {[%clk 0:00:05.6]} 56... Bd4 {[%clk
0:00:11.9]} 57. Rb7+ {[%clk 0:00:05.6]} 57... Kf6 {[%clk 0:00:12.4]} 58. Rc7
{[%clk 0:00:03.3]} 58... Ba1 {[%clk 0:00:10.6]} 59. Rc6+ {[%clk 0:00:02.8]}
59... Kf7 {[%clk 0:00:10.7]} 60. Re6 {[%clk 0:00:02.8]} 60... Bd4 {[%clk
0:00:10.3]} 61. Ra6 {[%clk 0:00:01.7]} 61... Bc3 {[%clk 0:00:10]} 62. gxf5
{[%clk 0:00:01.2]} 62... gxf5 {[%clk 0:00:10]} 63. Rh6 {[%clk 0:00:01.8]} 63...
Kg7 {[%clk 0:00:09.7]} 64. Rh5 {[%clk 0:00:01.1]} 64... Kg6 {[%clk 0:00:08.5]}
65. Rh8 {[%clk 0:00:02]} 65... Bb2 {[%clk 0:00:03.6]} 66. Ra8 {[%clk 0:00:02.9]}
66... Bd4 {[%clk 0:00:02.3]} 67. Ra6+ {[%clk 0:00:03.5]} 67... Kh5 {[%clk
0:00:02.7]} 68. Ke6 {[%clk 0:00:04.1]} 68... Kh4 {[%clk 0:00:02.4]} 69. Kxf5
{[%clk 0:00:04.3]} 69... Kxh3 {[%clk 0:00:03.1]} 70. Ke4 {[%clk 0:00:04.7]}
70... Kg3 {[%clk 0:00:04]} 71. Rg6 {[%clk 0:00:04.7]} 71... Kh4 {[%clk
0:00:04.5]} 72. Rh6+ {[%clk 0:00:04.6]} 72... Kg3 {[%clk 0:00:04.7]} 73. Rh5
{[%clk 0:00:04.9]} 73... g4 {[%clk 0:00:04.5]} 74. Rg5 {[%clk 0:00:05.4]} 74...
Kf2 {[%clk 0:00:04.2]} 75. Rxg4 {[%clk 0:00:05.8]} 75... Ke2 {[%clk 0:00:05.1]}
76. Rg6 {[%clk 0:00:06.1]} 76... Kf2 {[%clk 0:00:05]} 77. Re6 {[%clk 0:00:05.1]}
77... Kg3 {[%clk 0:00:05.3]} 78. Rd6 {[%clk 0:00:04.8]} 78... Kg2 {[%clk
0:00:04.8]} 79. Rd5 {[%clk 0:00:04.7]} 79... Bb2 {[%clk 0:00:04.7]} 80. Rd8
{[%clk 0:00:02.3]} 80... Bc3 {[%clk 0:00:04.5]} 81. Rf8 {[%clk 0:00:02.6]} 81...
Kg3 {[%clk 0:00:04.6]} 82. Kd5 {[%clk 0:00:02.7]} 82... Bd4 {[%clk 0:00:04.9]}
83. Ke6 {[%clk 0:00:02.8]} 83... Bc3 {[%clk 0:00:05.2]} 84. Kd6 {[%clk
0:00:03.1]} 84... Bb2 {[%clk 0:00:05.3]} 85. Kd5 {[%clk 0:00:03.3]} 85... Bc3
{[%clk 0:00:05.4]} 86. Ke4 {[%clk 0:00:03.7]} 86... Bb2 {[%clk 0:00:05.8]} 87.
Rg8+ {[%clk 0:00:04]} 87... Kf2 {[%clk 0:00:05.7]} 88. Rh8 {[%clk 0:00:04.1]}
88... Kg3 {[%clk 0:00:05.8]} 89. Rg8+ {[%clk 0:00:03.8]} 89... Kf2 {[%clk
0:00:06.1]} 90. Ra8 {[%clk 0:00:03.8]} 90... Kg3 {[%clk 0:00:06]} 91. Ra2 {[%clk
0:00:03.7]} 91... Bc3 {[%clk 0:00:05.9]} 92. Rc2 {[%clk 0:00:03.6]} 92... Bd4
{[%clk 0:00:06.1]} 93. Rd2 {[%clk 0:00:03.8]} 93... Bc3 {[%clk 0:00:06.3]} 94.
Re2 {[%clk 0:00:03.9]} 94... Ba1 {[%clk 0:00:06.1]} 95. Rc2 {[%clk 0:00:03.6]}
95... Kh4 {[%clk 0:00:04.1]} 96. Rg2 {[%clk 0:00:01.8]} 96... Kh3 {[%clk
0:00:04.3]} 97. Rg5 {[%clk 0:00:01.9]} 97... Kh4 {[%clk 0:00:02.6]} 98. Rxe5
{[%clk 0:00:01.9]} 1-0

[Event "*** Titled Tuesday Blitz"]
[Site "Chess.com"]
[Date "2020.10.20"]
[Round "11"]
[White "Mikasinski"]
[Black "barbara25"]
[Result "1-0"]
[WhiteElo "2578"]
[BlackElo "2315"]
[TimeControl "180+1"]
[EndTime "12:11:15 PDT"]
[Termination "Mikasinski won by checkmate"]

1. e4 {[%clk 0:03:00.9]} 1... c5 {[%clk 0:02:58.8]} 2. Nf3 {[%clk 0:03:00.9]}
2... d6 {[%clk 0:02:58.4]} 3. d4 {[%clk 0:03:01.2]} 3... cxd4 {[%clk 0:02:58.7]}
4. Nxd4 {[%clk 0:03:02.1]} 4... Nf6 {[%clk 0:02:59]} 5. Nc3 {[%clk 0:03:02.4]}
5... a6 {[%clk 0:02:59.3]} 6. Be2 {[%clk 0:03:02.4]} 6... e6 {[%clk 0:02:58.1]}
7. O-O {[%clk 0:03:01.4]} 7... Be7 {[%clk 0:02:58.3]} 8. f4 {[%clk 0:03:01.4]}
8... O-O {[%clk 0:02:57.6]} 9. Kh1 {[%clk 0:03:02]} 9... Nc6 {[%clk 0:02:57.1]}
10. Be3 {[%clk 0:03:02.1]} 10... Bd7 {[%clk 0:02:56.5]} 11. Qe1 {[%clk
0:02:59.7]} 11... Rc8 {[%clk 0:02:56.1]} 12. Rd1 {[%clk 0:02:56.3]} 12... b5
{[%clk 0:02:55.7]} 13. a3 {[%clk 0:02:55.8]} 13... Qc7 {[%clk 0:02:55]} 14. Qg3
{[%clk 0:02:55.7]} 14... Rfe8 {[%clk 0:02:50.2]} 15. Bf3 {[%clk 0:02:30.6]}
15... e5 {[%clk 0:02:33.2]} 16. Nxc6 {[%clk 0:01:48.4]} 16... Bxc6 {[%clk
0:02:30.7]} 17. fxe5 {[%clk 0:01:47.5]} 17... dxe5 {[%clk 0:02:30.5]} 18. Nd5
{[%clk 0:01:47.5]} 18... Bxd5 {[%clk 0:02:29.9]} 19. exd5 {[%clk 0:01:47.6]}
19... Bd6 {[%clk 0:02:28.6]} 20. Bh6 {[%clk 0:01:28.1]} 20... g6 {[%clk
0:02:25.4]} 21. Qh4 {[%clk 0:01:22.7]} 21... e4 {[%clk 0:01:58.9]} 22. Qxf6
{[%clk 0:01:09]} 22... Be5 {[%clk 0:01:58.9]} 23. d6 {[%clk 0:00:32.7]} 23...
Bxf6 {[%clk 0:01:48.5]} 24. dxc7 {[%clk 0:00:30.9]} 24... exf3 {[%clk
0:01:47.7]} 25. Rxf3 {[%clk 0:00:31]} 25... Bxb2 {[%clk 0:01:41.1]} 26. Bf4
{[%clk 0:00:22.1]} 26... Be5 {[%clk 0:01:21.9]} 27. Re3 {[%clk 0:00:09]} 27...
f6 {[%clk 0:01:18]} 28. Rd7 {[%clk 0:00:06.3]} 28... Bxc7 {[%clk 0:00:19.8]} 29.
Rxc7 {[%clk 0:00:02.5]} 29... Rcd8 {[%clk 0:00:14.1]} 30. Rxe8+ {[%clk
0:00:02.4]} 30... Rxe8 {[%clk 0:00:14.3]} 31. g3 {[%clk 0:00:02.9]} 31... g5
{[%clk 0:00:12]} 32. Bd6 {[%clk 0:00:02.1]} 32... Re2 {[%clk 0:00:11.5]} 33. Bb4
{[%clk 0:00:02]} 33... h5 {[%clk 0:00:09.7]} 34. Rc6 {[%clk 0:00:02.5]} 34...
Kf7 {[%clk 0:00:09.4]} 35. Rxa6 {[%clk 0:00:02.9]} 35... Rxc2 {[%clk 0:00:09.2]}
36. Rb6 {[%clk 0:00:03.1]} 36... Rc1+ {[%clk 0:00:09]} 37. Kg2 {[%clk
0:00:03.1]} 37... Rc2+ {[%clk 0:00:09.5]} 38. Kg1 {[%clk 0:00:03.6]} 38... Rc1+
{[%clk 0:00:09.8]} 39. Kf2 {[%clk 0:00:04.2]} 39... Rc2+ {[%clk 0:00:10.1]} 40.
Kg1 {[%clk 0:00:03.9]} 40... Rc1+ {[%clk 0:00:10.4]} 41. Kg2 {[%clk 0:00:04.5]}
41... Rc2+ {[%clk 0:00:10.7]} 42. Kf3 {[%clk 0:00:04.9]} 42... Rxh2 {[%clk
0:00:09.7]} 43. Rxb5 {[%clk 0:00:05.3]} 43... Rc2 {[%clk 0:00:10.1]} 44. a4
{[%clk 0:00:04.8]} 44... Rb2 {[%clk 0:00:10]} 45. a5 {[%clk 0:00:04.3]} 45...
Rb3+ {[%clk 0:00:10.3]} 46. Kf2 {[%clk 0:00:03]} 46... Rb2+ {[%clk 0:00:10.8]}
47. Ke3 {[%clk 0:00:03.5]} 47... Ra2 {[%clk 0:00:10.9]} 48. Rb6 {[%clk
0:00:02.9]} 48... h4 {[%clk 0:00:10.5]} 49. gxh4 {[%clk 0:00:03.1]} 49... gxh4
{[%clk 0:00:10.7]} 50. Bc3 {[%clk 0:00:03.7]} 50... h3 {[%clk 0:00:09.5]} 51.
Rxf6+ {[%clk 0:00:03.9]} 51... Ke7 {[%clk 0:00:09.8]} 52. Rf3 {[%clk 0:00:04.3]}
52... h2 {[%clk 0:00:09.7]} 53. Rh3 {[%clk 0:00:04.5]} 53... Ke6 {[%clk
0:00:09.8]} 54. Kd3 {[%clk 0:00:04.3]} 54... Kf5 {[%clk 0:00:09.2]} 55. Kc4
{[%clk 0:00:03.3]} 55... Kg4 {[%clk 0:00:09.3]} 56. Rh7 {[%clk 0:00:02.4]} 56...
Kf3 {[%clk 0:00:09.2]} 57. Be5 {[%clk 0:00:02.7]} 57... Rxa5 {[%clk 0:00:07]}
58. Bxh2 {[%clk 0:00:03]} 58... Ra4+ {[%clk 0:00:07.3]} 59. Kd5 {[%clk
0:00:03.1]} 59... Ra5+ {[%clk 0:00:07.2]} 60. Ke6 {[%clk 0:00:03.2]} 60... Kg4
{[%clk 0:00:07]} 61. Bd6 {[%clk 0:00:03.7]} 61... Ra6 {[%clk 0:00:06.9]} 62.
Rg7+ {[%clk 0:00:04.1]} 62... Kf3 {[%clk 0:00:06.3]} 63. Rf7+ {[%clk 0:00:04.5]}
63... Ke2 {[%clk 0:00:06.4]} 64. Rc7 {[%clk 0:00:04.7]} 64... Kd3 {[%clk
0:00:05.8]} 65. Kd5 {[%clk 0:00:04.9]} 65... Ra5+ {[%clk 0:00:06]} 66. Bc5
{[%clk 0:00:05.4]} 66... Rb5 {[%clk 0:00:06.2]} 67. Rh7 {[%clk 0:00:05.1]} 67...
Ra5 {[%clk 0:00:06.1]} 68. Rh3+ {[%clk 0:00:05.5]} 68... Ke2 {[%clk 0:00:06.3]}
69. Kc4 {[%clk 0:00:05.6]} 69... Ra4+ {[%clk 0:00:05.8]} 70. Bb4 {[%clk
0:00:06]} 70... Ra8 {[%clk 0:00:06.3]} 71. Rb3 {[%clk 0:00:03.9]} 71... Rc8+
{[%clk 0:00:05.1]} 72. Bc5 {[%clk 0:00:03.3]} 72... Kd2 {[%clk 0:00:03.6]} 73.
Rb2+ {[%clk 0:00:03.7]} 73... Ke1 {[%clk 0:00:03.2]} 74. Rh2 {[%clk 0:00:02.6]}
74... Kf1 {[%clk 0:00:02.1]} 75. Kd5 {[%clk 0:00:02.8]} 75... Rd8+ {[%clk
0:00:02.2]} 76. Bd6 {[%clk 0:00:02.4]} 76... Kg1 {[%clk 0:00:02.3]} 77. Ra2
{[%clk 0:00:02]} 77... Kf1 {[%clk 0:00:02.5]} 78. Kc5 {[%clk 0:00:02.4]} 78...
Ke1 {[%clk 0:00:02.6]} 79. Bf4 {[%clk 0:00:02.5]} 79... Rc8+ {[%clk 0:00:02.9]}
80. Kd4 {[%clk 0:00:02.9]} 80... Rd8+ {[%clk 0:00:03.5]} 81. Ke4 {[%clk
0:00:03.5]} 81... Kd1 {[%clk 0:00:03.7]} 82. Kf3 {[%clk 0:00:03.4]} 82... Ke1
{[%clk 0:00:03]} 83. Be3 {[%clk 0:00:03.4]} 83... Kd1 {[%clk 0:00:03]} 84. Ra1+
{[%clk 0:00:02.1]} 84... Kc2 {[%clk 0:00:02.7]} 85. Ra2+ {[%clk 0:00:02.4]}
85... Kb3 {[%clk 0:00:02.9]} 86. Rh2 {[%clk 0:00:02.7]} 86... Rf8+ {[%clk
0:00:03.8]} 87. Ke2 {[%clk 0:00:03]} 87... Kc3 {[%clk 0:00:04.6]} 88. Rh1 {[%clk
0:00:02.9]} 88... Kc4 {[%clk 0:00:05]} 89. Rc1+ {[%clk 0:00:03.5]} 89... Kd5
{[%clk 0:00:05.5]} 90. Kd3 {[%clk 0:00:04]} 90... Re8 {[%clk 0:00:05.5]} 91.
Rc5+ {[%clk 0:00:04.3]} 91... Kd6 {[%clk 0:00:05.8]} 92. Rh5 {[%clk 0:00:04.9]}
92... Kd7 {[%clk 0:00:05.6]} 93. Bd4 {[%clk 0:00:05.2]} 93... Rg8 {[%clk
0:00:05.5]} 94. Kc4 {[%clk 0:00:05.4]} 94... Rf8 {[%clk 0:00:05.2]} 95. Kd5
{[%clk 0:00:05.5]} 95... Rf7 {[%clk 0:00:05.6]} 96. Be5 {[%clk 0:00:05.4]} 96...
Rf2 {[%clk 0:00:05.2]} 97. Rh7+ {[%clk 0:00:05.6]} 97... Kc8 {[%clk 0:00:05.4]}
98. Bd4 {[%clk 0:00:04.4]} 98... Rd2 {[%clk 0:00:05.7]} 99. Kc6 {[%clk
0:00:03.3]} 99... Rc2+ {[%clk 0:00:05.9]} 100. Bc5 {[%clk 0:00:03.7]} 100... Kb8
{[%clk 0:00:05.7]} 101. Rh8# {[%clk 0:00:03]} 1-0

[Event "*** Titled Tuesday Blitz"]
[Site "Chess.com"]
[Date "2020.10.20"]
[Round "11"]
[White "TheMagnet"]
[Black "realmadridtv"]
[Result "1-0"]
[WhiteElo "2585"]
[BlackElo "2428"]
[TimeControl "180+1"]
[EndTime "12:12:30 PDT"]
[Termination "TheMagnet won on time"]

1. d4 {[%clk 0:03:00.9]} 1... d5 {[%clk 0:02:58.4]} 2. c4 {[%clk 0:03:00.8]}
2... c6 {[%clk 0:02:58.3]} 3. Nf3 {[%clk 0:03:00.6]} 3... Nf6 {[%clk 0:02:58.6]}
4. Nc3 {[%clk 0:03:00.8]} 4... g6 {[%clk 0:02:59.1]} 5. cxd5 {[%clk 0:03:00.3]}
5... cxd5 {[%clk 0:03:00]} 6. Bf4 {[%clk 0:03:00.7]} 6... Bg7 {[%clk 0:03:00.6]}
7. e3 {[%clk 0:03:00.5]} 7... O-O {[%clk 0:03:00.6]} 8. h3 {[%clk 0:03:01.1]}
8... Nc6 {[%clk 0:03:01.2]} 9. Bd3 {[%clk 0:03:01.5]} 9... Bf5 {[%clk
0:03:00.2]} 10. O-O {[%clk 0:03:01.3]} 10... Bxd3 {[%clk 0:02:59]} 11. Qxd3
{[%clk 0:03:02.2]} 11... e6 {[%clk 0:02:59.7]} 12. Rfc1 {[%clk 0:03:01.3]} 12...
Ne8 {[%clk 0:02:58.6]} 13. Na4 {[%clk 0:02:54.1]} 13... Rc8 {[%clk 0:02:43.4]}
14. a3 {[%clk 0:02:42]} 14... Nd6 {[%clk 0:02:41.8]} 15. Nc5 {[%clk 0:02:33.4]}
15... b6 {[%clk 0:02:39.7]} 16. Na6 {[%clk 0:02:23.5]} 16... Qd7 {[%clk
0:02:25.5]} 17. Rc2 {[%clk 0:02:15.2]} 17... Na5 {[%clk 0:02:11.5]} 18. Rac1
{[%clk 0:02:06.3]} 18... Rxc2 {[%clk 0:02:08.1]} 19. Rxc2 {[%clk 0:02:06.2]}
19... Nac4 {[%clk 0:02:05.2]} 20. Nd2 {[%clk 0:01:59.1]} 20... Rc8 {[%clk
0:01:47.1]} 21. Bxd6 {[%clk 0:01:57.1]} 21... Nxd6 {[%clk 0:01:44.2]} 22. Nb4
{[%clk 0:01:34]} 22... h5 {[%clk 0:01:38.4]} 23. Rxc8+ {[%clk 0:01:30.3]} 23...
Nxc8 {[%clk 0:01:35.7]} 24. Qc2 {[%clk 0:01:25.8]} 24... Ne7 {[%clk 0:01:34.7]}
25. Qd3 {[%clk 0:01:14.8]} 25... Bf8 {[%clk 0:01:32.1]} 26. Qa6 {[%clk
0:01:12.5]} 26... Nc8 {[%clk 0:01:32.1]} 27. Nd3 {[%clk 0:01:10.9]} 27... Bd6
{[%clk 0:01:30.1]} 28. Nf3 {[%clk 0:01:04.5]} 28... f6 {[%clk 0:01:30.4]} 29. g3
{[%clk 0:01:02.4]} 29... g5 {[%clk 0:01:26.7]} 30. Kg2 {[%clk 0:01:00.8]} 30...
Kg7 {[%clk 0:01:24.6]} 31. h4 {[%clk 0:00:59.8]} 31... g4 {[%clk 0:01:23.2]} 32.
Nd2 {[%clk 0:00:59.2]} 32... Ne7 {[%clk 0:01:23.7]} 33. a4 {[%clk 0:00:49]}
33... e5 {[%clk 0:01:23.4]} 34. Qb5 {[%clk 0:00:47.8]} 34... Qc8 {[%clk
0:01:15.1]} 35. dxe5 {[%clk 0:00:45]} 35... fxe5 {[%clk 0:01:14.1]} 36. Qb3
{[%clk 0:00:39.7]} 36... Qc6 {[%clk 0:01:07.4]} 37. Kg1 {[%clk 0:00:37]} 37...
a5 {[%clk 0:01:02.1]} 38. Qc3 {[%clk 0:00:32]} 38... Qxc3 {[%clk 0:00:53.4]} 39.
bxc3 {[%clk 0:00:32.9]} 39... e4 {[%clk 0:00:50.4]} 40. Nc1 {[%clk 0:00:31.1]}
40... Kf6 {[%clk 0:00:43.7]} 41. Kf1 {[%clk 0:00:30.3]} 41... Ke5 {[%clk
0:00:43.7]} 42. Ke2 {[%clk 0:00:30.6]} 42... Ba3 {[%clk 0:00:39.1]} 43. Ncb3
{[%clk 0:00:28.3]} 43... Nf5 {[%clk 0:00:35]} 44. Nd4 {[%clk 0:00:21.6]} 44...
Nd6 {[%clk 0:00:25.8]} 45. Kd1 {[%clk 0:00:19.9]} 45... Bc5 {[%clk 0:00:24.5]}
46. Ne2 {[%clk 0:00:19.7]} 46... Ne8 {[%clk 0:00:18]} 47. Nf4 {[%clk 0:00:19.1]}
47... Nf6 {[%clk 0:00:18.6]} 48. Kc2 {[%clk 0:00:19.2]} 48... Kf5 {[%clk
0:00:16.5]} 49. Nb3 {[%clk 0:00:19.1]} 49... Bd6 {[%clk 0:00:16]} 50. Ne2 {[%clk
0:00:19]} 50... Be5 {[%clk 0:00:16.1]} 51. Nbd4+ {[%clk 0:00:18.6]} 51... Bxd4
{[%clk 0:00:16.5]} 52. Nxd4+ {[%clk 0:00:19.1]} 52... Ke5 {[%clk 0:00:17]} 53.
Ne2 {[%clk 0:00:19.6]} 53... Kd6 {[%clk 0:00:16.8]} 54. Nf4 {[%clk 0:00:20]}
54... Kc5 {[%clk 0:00:17.1]} 55. Kb3 {[%clk 0:00:20.6]} 55... Kd6 {[%clk
0:00:16.1]} 56. c4 {[%clk 0:00:21]} 56... dxc4+ {[%clk 0:00:14.5]} 57. Kxc4
{[%clk 0:00:21.9]} 57... Kc6 {[%clk 0:00:13.8]} 58. Kd4 {[%clk 0:00:21.2]} 58...
b5 {[%clk 0:00:14.1]} 59. axb5+ {[%clk 0:00:21]} 59... Kxb5 {[%clk 0:00:15]} 60.
Ke5 {[%clk 0:00:21.6]} 60... a4 {[%clk 0:00:10.8]} 61. Kxf6 {[%clk 0:00:19.7]}
61... a3 {[%clk 0:00:10.9]} 62. Nd5 {[%clk 0:00:20]} 62... Kc4 {[%clk
0:00:10.7]} 63. Nb6+ {[%clk 0:00:20.4]} 63... Kb3 {[%clk 0:00:10.4]} 64. Nd7
{[%clk 0:00:19.4]} 64... a2 {[%clk 0:00:10.2]} 65. Nc5+ {[%clk 0:00:19.8]} 65...
Kc4 {[%clk 0:00:09.5]} 66. Nxe4 {[%clk 0:00:19.8]} 66... a1=Q+ {[%clk
0:00:09.8]} 67. Kf5 {[%clk 0:00:19.8]} 67... Kd5 {[%clk 0:00:09.4]} 68. Nf6+
{[%clk 0:00:17.9]} 68... Kd6 {[%clk 0:00:09.7]} 69. Nxh5 {[%clk 0:00:18.8]}
69... Qa4 {[%clk 0:00:08.1]} 70. Nf4 {[%clk 0:00:18.7]} 70... Qc2+ {[%clk
0:00:07]} 71. Kxg4 {[%clk 0:00:18.2]} 71... Qxf2 {[%clk 0:00:07.6]} 72. e4
{[%clk 0:00:18.3]} 72... Qe3 {[%clk 0:00:06.8]} 73. h5 {[%clk 0:00:18.3]} 73...
Qxe4 {[%clk 0:00:07]} 74. Kg5 {[%clk 0:00:18.9]} 74... Ke5 {[%clk 0:00:06.9]}
75. Ng6+ {[%clk 0:00:18.8]} 75... Ke6 {[%clk 0:00:06.2]} 76. g4 {[%clk
0:00:19.2]} 76... Qe3+ {[%clk 0:00:06.1]} 77. Kh4 {[%clk 0:00:19.5]} 77... Kf6
{[%clk 0:00:05.8]} 78. Nf8 {[%clk 0:00:15.4]} 78... Qf2+ {[%clk 0:00:05.7]} 79.
Kh3 {[%clk 0:00:15.5]} 79... Qf3+ {[%clk 0:00:04]} 80. Kh4 {[%clk 0:00:15.9]}
80... Qh1+ {[%clk 0:00:04]} 81. Kg3 {[%clk 0:00:16.2]} 81... Kg7 {[%clk
0:00:03.2]} 82. Ne6+ {[%clk 0:00:16.3]} 82... Kh7 {[%clk 0:00:02.6]} 83. Ng5+
{[%clk 0:00:15.8]} 83... Kh6 {[%clk 0:00:03.2]} 84. Nh3 {[%clk 0:00:16.5]} 84...
Qe1+ {[%clk 0:00:02.7]} 85. Kf3 {[%clk 0:00:15.9]} 85... Qa1 {[%clk 0:00:03.6]}
86. Kg3 {[%clk 0:00:16.1]} 86... Qa3+ {[%clk 0:00:04.1]} 87. Kh4 {[%clk
0:00:16.5]} 87... Qa7 {[%clk 0:00:04.7]} 88. g5+ {[%clk 0:00:17]} 88... Kh7
{[%clk 0:00:05.4]} 89. Nf4 {[%clk 0:00:17.4]} 89... Qf2+ {[%clk 0:00:04.2]} 90.
Kg4 {[%clk 0:00:18.3]} 90... Qg1+ {[%clk 0:00:04.7]} 91. Kf5 {[%clk 0:00:18.5]}
91... Qf1 {[%clk 0:00:04.2]} 92. Kg4 {[%clk 0:00:18.5]} 92... Kg8 {[%clk
0:00:03.9]} 93. Kf5 {[%clk 0:00:18.8]} 93... Qd1 {[%clk 0:00:04.5]} 94. Kf6
{[%clk 0:00:16.7]} 94... Qf3 {[%clk 0:00:03.9]} 95. Kf5 {[%clk 0:00:17]} 95...
Kf7 {[%clk 0:00:03.9]} 96. Ke5 {[%clk 0:00:17.1]} 96... Qe3+ {[%clk 0:00:03.8]}
97. Kf5 {[%clk 0:00:17.5]} 97... Qf3 {[%clk 0:00:04.1]} 98. Ke5 {[%clk
0:00:17.8]} 98... Ke7 {[%clk 0:00:04.3]} 99. Kf5 {[%clk 0:00:18.2]} 99... Qd1
{[%clk 0:00:04]} 100. h6 {[%clk 0:00:17.8]} 100... Qc2+ {[%clk 0:00:04.2]} 101.
Ke5 {[%clk 0:00:17.9]} 101... Kf7 {[%clk 0:00:04.5]} 102. g6+ {[%clk 0:00:17.3]}
102... Kg8 {[%clk 0:00:04.6]} 103. Kf6 {[%clk 0:00:16.2]} 103... Qc3+ {[%clk
0:00:04.4]} 104. Kf5 {[%clk 0:00:16.3]} 104... Qc5+ {[%clk 0:00:04.5]} 105. Kf6
{[%clk 0:00:15.9]} 105... Qd4+ {[%clk 0:00:04.7]} 106. Kf5 {[%clk 0:00:16.2]}
106... Qd7+ {[%clk 0:00:03.9]} 107. Kf6 {[%clk 0:00:16.3]} 107... Qd6+ {[%clk
0:00:04]} 108. Kf5 {[%clk 0:00:16.7]} 108... Qd7+ {[%clk 0:00:03.9]} 109. Kf6
{[%clk 0:00:17.1]} 109... Qd8+ {[%clk 0:00:04.4]} 110. Kf5 {[%clk 0:00:17.4]}
110... Qf8+ {[%clk 0:00:04.7]} 111. Kg5 {[%clk 0:00:17.5]} 111... Qe7+ {[%clk
0:00:05.3]} 112. Kf5 {[%clk 0:00:17.9]} 112... Qc5+ {[%clk 0:00:05.6]} 113. Kf6
{[%clk 0:00:18.2]} 113... Qd4+ {[%clk 0:00:05.2]} 114. Kf5 {[%clk 0:00:18.5]}
114... Qf2 {[%clk 0:00:05.1]} 115. Kg5 {[%clk 0:00:18.6]} 115... Qg3+ {[%clk
0:00:05.2]} 116. Kf5 {[%clk 0:00:19.1]} 116... Qh4 {[%clk 0:00:05.3]} 117. h7+
{[%clk 0:00:17.6]} 117... Kh8 {[%clk 0:00:04.9]} 118. Ke5 {[%clk 0:00:16.1]}
118... Qg5+ {[%clk 0:00:04.7]} 119. Ke4 {[%clk 0:00:16.5]} 119... Qe7+ {[%clk
0:00:03.8]} 120. Kf5 {[%clk 0:00:16.8]} 120... Qg7 {[%clk 0:00:03.4]} 121. Kg5
{[%clk 0:00:16]} 121... Qe5+ {[%clk 0:00:03.3]} 122. Kg4 {[%clk 0:00:16.3]}
122... Kg7 {[%clk 0:00:03.6]} 123. Kf3 {[%clk 0:00:16.3]} 123... Qc3+ {[%clk
0:00:03.4]} 124. Kg4 {[%clk 0:00:16.6]} 124... Qb2 {[%clk 0:00:03.5]} 125. Kf5
{[%clk 0:00:16.4]} 125... Qb1+ {[%clk 0:00:02.4]} 126. Kg5 {[%clk 0:00:16.4]}
126... Qb5+ {[%clk 0:00:02.6]} 127. Kg4 {[%clk 0:00:16.3]} 127... Qe5 {[%clk
0:00:02.9]} 128. Kf3 {[%clk 0:00:16.4]} 128... Qf5 {[%clk 0:00:02.5]} 129. Kg3
{[%clk 0:00:16.7]} 129... Qe5 {[%clk 0:00:02.5]} 130. Kg4 {[%clk 0:00:17.1]}
130... Kh6 {[%clk 0:00:02.5]} 131. Kf3 {[%clk 0:00:12.9]} 131... Qf6 {[%clk
0:00:02.3]} 132. Kg4 {[%clk 0:00:11]} 132... Qe5 {[%clk 0:00:01.7]} 133. Kf3
{[%clk 0:00:11.3]} 133... Kg5 {[%clk 0:00:01.7]} 134. Ne6+ {[%clk 0:00:08.6]}
1-0